bitfinex/quotes_BTCUSD_20251010
["timestamp","ask_amount","ask_price","bid_price","bid_amount"]
[1760073659971,0.12316,121300.0,121290.0,0.8525183]
[1760073660419,0.12316,121300.0,121290.0,0.87728304]
[1760073660603,0.0002,121300.0,121290.0,0.87728304]
[1760073660836,0.22414473,121300.0,121290.0,0.87728304]
[1760073661966,0.23314473,121300.0,121290.0,0.87728304]
[1760073664092,0.00070473,121300.0,121290.0,0.87728304]
[1760073664323,0.23314473,121300.0,121290.0,0.87728304]
[1760073665201,0.23365995,121300.0,121290.0,0.87728304]
[1760073665412,0.00121995,121300.0,121290.0,0.87728304]
[1760073665672,0.23365995,121300.0,121290.0,0.87728304]
[1760073666515,0.23361995,121300.0,121290.0,0.87728304]
[1760073667615,0.00121995,121300.0,121290.0,0.87728304]
[1760073671968,0.0002,121320.0,121310.0,0.68210702]
[1760073672236,0.00025045,121320.0,121310.0,1.32572995]
[1760073672440,0.00025045,121320.0,121310.0,1.0799698]
[1760073672871,0.00025045,121320.0,121310.0,1.10472743]
[1760073673548,0.00025045,121320.0,121310.0,1.62196758]
[1760073674184,0.00025045,121320.0,121310.0,1.38952758]
[1760073674402,0.00025045,121320.0,121310.0,1.62196758]
[1760073675760,0.00025045,121320.0,121310.0,1.38952758]
[1760073675958,0.00025045,121320.0,121310.0,1.62196758]
[1760073676499,0.00025045,121320.0,121310.0,1.38952758]
[1760073676719,0.00025045,121320.0,121310.0,0.87228743]
[1760073676942,0.00025045,121320.0,121310.0,1.10472743]
[1760073677830,0.00128067,121320.0,121310.0,1.10472743]
[1760073679952,0.00128067,121320.0,121310.0,1.62196758]
[1760073681703,0.00128067,121320.0,121310.0,1.38952758]
[1760073681978,0.00128067,121320.0,121310.0,1.62192758]
[1760073684617,0.00128067,121320.0,121310.0,1.62188758]
[1760073685361,0.00128067,121320.0,121310.0,1.38952758]
[1760073685634,0.00128067,121320.0,121310.0,1.62188758]
[1760073687600,0.00128067,121320.0,121310.0,1.74985367]
[1760073688997,0.12944369,121340.0,121330.0,0.93980395]
[1760073689231,0.13720259,121340.0,121330.0,1.15433281]
[1760073689885,0.13720259,121340.0,121330.0,1.16258391]
[1760073692317,0.15262408,121340.0,121330.0,1.16258391]
[1760073692790,0.25554039,121340.0,121330.0,0.36454965]
[1760073693004,0.02318039,121340.0,121330.0,0.75203178]
[1760073693225,0.2401189,121340.0,121330.0,0.77627178]
[1760073693447,0.25554039,121340.0,121330.0,0.77627178]
[1760073693666,0.02318039,121340.0,121330.0,1.16375391]
[1760073693876,0.2401189,121340.0,121330.0,1.16375391]
[1760073694082,0.25554039,121340.0,121330.0,1.16375391]
[1760073694738,0.25657035,121340.0,121330.0,1.16375391]
[1760073696020,0.02421035,121340.0,121330.0,1.16375391]
[1760073696273,0.24114886,121340.0,121330.0,1.16375391]
[1760073696482,0.25657035,121340.0,121330.0,1.16375391]
[1760073701037,0.02421035,121340.0,121330.0,1.16375391]
[1760073701261,0.24114886,121340.0,121330.0,1.16375391]
[1760073701481,0.25657035,121340.0,121330.0,1.16375391]
[1760073705389,0.25659726,121340.0,121330.0,1.16375391]
[1760073706000,0.24114886,121340.0,121330.0,1.16375391]
[1760073707803,0.24114886,121340.0,121330.0,0.38878965]
[1760073708026,0.24110886,121340.0,121330.0,1.16375391]
[1760073713306,0.04038897,121340.0,121330.0,1.16375391]
[1760073719486,0.0002,121350.0,121340.0,0.1648261]
[1760073719691,0.31828,121350.0,121340.0,1.0273624]
[1760073720125,0.31828,121350.0,121340.0,0.25239814]
[1760073720342,0.31828,121350.0,121340.0,1.0273624]
[1760073721205,0.31928,121350.0,121340.0,1.0273624]
[1760073721876,0.32028,121350.0,121340.0,1.0273624]
[1760073722770,0.08796,121350.0,121340.0,1.0273624]
[1760073722993,0.32028,121350.0,121340.0,0.25239814]
[1760073723264,0.0022,121350.0,121340.0,1.0273624]
[1760073723722,0.32028,121350.0,121340.0,1.0273624]
[1760073725070,0.3207949,121350.0,121340.0,1.0273624]
[1760073725249,0.01044272,121350.0,121340.0,1.0273624]
[1760073725577,0.0027149,121350.0,121340.0,0.25239814]
[1760073725802,0.3207949,121350.0,121340.0,1.0273624]
[1760073726030,0.32852272,121350.0,121340.0,1.0273624]
[1760073727237,0.3207949,121350.0,121340.0,1.0273624]
[1760073727662,0.3285215,121350.0,121340.0,1.0273624]
[1760073728271,0.3207949,121350.0,121340.0,1.0273624]
[1760073729012,0.0027149,121350.0,121340.0,1.0273624]
[1760073729204,0.2350349,121350.0,121340.0,1.0273624]
[1760073732491,0.0027149,121350.0,121340.0,1.0273624]
[1760073732703,0.2350349,121350.0,121340.0,1.0273624]
[1760073734073,0.2350349,121350.0,121340.0,0.25239814]
[1760073734292,0.2350349,121350.0,121340.0,1.0273624]
[1760073735411,0.0027149,121350.0,121340.0,1.0273624]
[1760073735621,0.2350349,121350.0,121340.0,1.0273624]
[1760073738995,0.0027149,121350.0,121340.0,1.0273624]
[1760073739212,0.2350349,121350.0,121340.0,1.49796659]
[1760073740100,0.2340349,121350.0,121340.0,1.49796659]
[1760073740351,0.2340349,121350.0,121340.0,1.5227203]
[1760073740559,0.2350349,121350.0,121340.0,1.5227203]
[1760073740765,0.2340349,121350.0,121340.0,1.5227203]
[1760073741216,0.0017149,121350.0,121340.0,1.5227203]
[1760073741670,0.0007149,121350.0,121340.0,1.7550403]
[1760073743657,0.0007149,121350.0,121340.0,1.5227203]
[1760073743859,0.0007149,121350.0,121340.0,1.7551603]
[1760073744271,0.0007149,121350.0,121340.0,1.5227203]
[1760073744491,0.0007149,121350.0,121340.0,1.7551603]
[1760073747695,0.0007149,121350.0,121340.0,1.10916057]
[1760073749443,0.0007149,121350.0,121340.0,0.87672057]
[1760073749671,0.0007149,121350.0,121340.0,1.10912057]
[1760073751003,0.0007149,121350.0,121340.0,0.87672057]
[1760073751619,0.04049325,121360.0,121350.0,0.68125918]
[1760073751824,0.04054367,121360.0,121350.0,0.84658196]
[1760073752251,0.04105851,121360.0,121350.0,0.84658196]
[1760073753140,0.04105851,121360.0,121350.0,0.87133444]
[1760073757121,0.00056526,121360.0,121350.0,0.87133444]
[1760073766891,0.00056526,121360.0,121350.0,0.33192778]
[1760073767102,0.23296526,121360.0,121350.0,0.33192778]
[1760073767318,0.23296526,121360.0,121350.0,0.87096444]
[1760073770273,0.24069166,121360.0,121350.0,0.87096444]
[1760073776157,0.00829166,121360.0,121350.0,0.87096444]
[1760073776320,0.23292526,121360.0,121350.0,0.87096444]
[1760073778239,0.00056526,121360.0,121350.0,0.87096444]
[1760073778432,0.23292526,121360.0,121350.0,0.87096444]
[1760073779140,0.00056526,121360.0,121350.0,0.87096444]
[1760073779356,0.23292526,121360.0,121350.0,0.87096444]
[1760073780196,0.00056526,121360.0,121350.0,0.87096444]
[1760073780398,0.23288526,121360.0,121350.0,0.87096444]
[1760073784125,0.00056526,121360.0,121350.0,1.3874111]
[1760073784358,0.00056526,121360.0,121350.0,0.87096444]
[1760073784967,0.00056526,121360.0,121350.0,1.3874111]
[1760073785167,1e-08,121360.0,121350.0,1.3874111]
[1760073785405,0.10052372,121390.0,121380.0,0.16477179]
[1760073785617,0.0928,121390.0,121380.0,0.86432339]
[1760073785831,0.0928,121390.0,121380.0,0.84784622]
[1760073786287,0.0928,121390.0,121380.0,0.87259282]
[1760073787700,0.31816,121390.0,121380.0,0.87259282]
[1760073788626,0.31812,121390.0,121380.0,0.87259282]
[1760073789913,0.2326,121400.0,121390.0,0.16475821]
[1760073790155,0.2327513,121400.0,121390.0,0.79487177]
[1760073790370,0.2327513,121400.0,121390.0,0.77839595]
[1760073790803,0.2327513,121400.0,121390.0,0.80314133]
[1760073791299,0.23480987,121400.0,121390.0,0.80314133]
[1760073792408,0.23480987,121400.0,121390.0,0.81154397]
[1760073793718,0.22980987,121400.0,121390.0,0.81154397]
[1760073794596,0.22980987,121400.0,121390.0,0.89466603]
[1760073795689,0.00205857,121400.0,121390.0,0.89466603]
[1760073795897,0.23449857,121400.0,121390.0,0.89466603]
[1760073797397,0.23449857,121400.0,121390.0,1.41111269]
[1760073797398,0.00205857,121400.0,121390.0,1.41111269]
[1760073797879,0.00205857,121400.0,121390.0,1.75111269]
[1760073798117,0.00205857,121400.0,121390.0,1.98359269]
[1760073799209,0.00205857,121400.0,121390.0,1.98459269]
[1760073799424,0.0002,121410.0,121400.0,1.19763796]
[1760073799681,0.0002,121410.0,121400.0,1.35246206]
[1760073799892,0.0002,121410.0,121400.0,1.60062206]
[1760073800109,0.00071452,121410.0,121400.0,1.60062206]
[1760073800352,0.00071452,121410.0,121400.0,1.94062206]
[1760073800578,0.00071452,121410.0,121400.0,1.96536015]
[1760073801745,0.00728216,121430.0,121420.0,0.68116416]
[1760073801961,0.00733257,121430.0,121420.0,0.79517694]
[1760073802175,0.00836139,121430.0,121420.0,1.05569694]
[1760073802393,0.00836139,121430.0,121420.0,1.07820694]
[1760073802605,0.00836139,121430.0,121420.0,1.10294336]
[1760073803029,0.00836139,121430.0,121420.0,0.87046336]
[1760073803275,0.00836139,121430.0,121420.0,1.10298336]
[1760073803955,0.00836139,121430.0,121420.0,0.87046336]
[1760073804160,0.00836139,121430.0,121420.0,1.10298336]
[1760073804826,0.00836139,121430.0,121420.0,1.10294336]
[1760073805049,1.13904,121440.0,121430.0,0.16470394]
[1760073805273,1.0002,121440.0,121430.0,1.35993403]
[1760073805518,1.0002,121440.0,121430.0,0.55545032]
[1760073805738,1.0002,121440.0,121430.0,1.58834364]
[1760073805968,1.0002,121440.0,121430.0,1.92834364]
[1760073806426,0.47910726,121440.0,121430.0,0.6685279]
[1760073806655,0.47910726,121440.0,121430.0,1.70142122]
[1760073806871,0.47910726,121440.0,121430.0,1.93398122]
[1760073807559,0.47910726,121440.0,121430.0,2.06129038]
[1760073808901,0.47910726,121440.0,121430.0,2.06229038]
[1760073809322,0.47910726,121440.0,121430.0,1.82973038]
[1760073809540,0.47910726,121440.0,121430.0,1.43757466]
[1760073809996,0.47910726,121440.0,121430.0,1.67009466]
[1760073810674,0.47910726,121440.0,121430.0,1.43757466]
[1760073810896,0.47962159,121440.0,121430.0,1.67009466]
[1760073813006,0.47962159,121440.0,121430.0,1.67109466]
[1760073813661,0.47962159,121440.0,121430.0,1.43857466]
[1760073813885,0.47962159,121440.0,121430.0,1.67105466]
[1760073814920,0.47962159,121440.0,121430.0,2.05778882]
[1760073816021,0.28548882,121440.0,121430.0,2.05778882]
[1760073816969,0.29315444,121440.0,121430.0,2.05778882]
[1760073817182,0.29315444,121440.0,121430.0,1.82530882]
[1760073817577,0.29315444,121440.0,121430.0,2.05778882]
[1760073818529,0.2931563,121440.0,121430.0,2.05778882]
[1760073819800,0.2931563,121440.0,121430.0,1.82530882]
[1760073820207,0.2931563,121440.0,121430.0,2.05778882]
[1760073820654,0.2931563,121440.0,121430.0,1.82530882]
[1760073821068,0.2931563,121440.0,121430.0,2.05778882]
[1760073821902,0.2931563,121440.0,121430.0,1.82530882]
[1760073822134,0.2931563,121440.0,121430.0,2.05778882]
[1760073822586,0.2931563,121440.0,121430.0,1.82530882]
[1760073822786,0.2931563,121440.0,121430.0,2.10774882]
[1760073823096,0.29316289,121440.0,121430.0,2.10774882]
[1760073823760,0.29316557,121440.0,121430.0,2.10774882]
[1760073825400,0.10027,121460.0,121430.0,3.0656632]
[1760073825628,0.11563684,121460.0,121450.0,1.3370693]
[1760073825858,0.11563684,121460.0,121450.0,1.65263136]
[1760073826070,0.10027,121460.0,121450.0,2.03378136]
[1760073827551,0.09792365,121460.0,121450.0,2.03378136]
[1760073827772,0.0977931,121460.0,121450.0,1.82606923]
[1760073827983,0.0977931,121460.0,121450.0,2.11985922]
[1760073828984,0.0977931,121460.0,121450.0,1.50068506]
[1760073829218,0.0977931,121460.0,121450.0,1.88741922]
[1760073829519,0.0977931,121460.0,121450.0,2.11985922]
[1760073830045,0.0977231,121460.0,121450.0,1.88741922]
[1760073830247,0.0977231,121460.0,121450.0,2.11985922]
[1760073831223,0.09875154,121460.0,121450.0,2.11985922]
[1760073831433,0.09875154,121460.0,121450.0,1.88741922]
[1760073831614,0.09875154,121460.0,121450.0,2.11985922]
[1760073834250,0.09875154,121460.0,121450.0,2.12085922]
[1760073835502,0.09875154,121460.0,121450.0,2.12081922]
[1760073835712,0.09875154,121460.0,121450.0,2.12181922]
[1760073841542,0.09875154,121460.0,121450.0,1.88941922]
[1760073841977,0.09875154,121460.0,121450.0,2.12177922]
[1760073842190,0.09875154,121460.0,121450.0,1.73504506]
[1760073842429,0.09875154,121460.0,121450.0,2.12177922]
[1760073843483,0.09875154,121460.0,121450.0,1.44133507]
[1760073843697,0.09875154,121460.0,121450.0,1.67369507]
[1760073846552,0.09875154,121460.0,121450.0,2.06042923]
[1760073848818,0.0002,121470.0,121460.0,0.16466326]
[1760073849100,0.00050418,121470.0,121460.0,2.8287666]
[1760073849316,0.00050418,121470.0,121460.0,2.85078028]
[1760073850035,0.00050418,121470.0,121460.0,3.19078028]
[1760073852105,0.00050418,121470.0,121460.0,2.0305778]
[1760073852958,0.00050418,121470.0,121460.0,1.82294376]
[1760073853206,0.00050418,121470.0,121460.0,0.89514128]
[1760073853468,0.00050418,121470.0,121460.0,2.05534376]
[1760073854077,0.00050418,121470.0,121460.0,1.82294376]
[1760073854272,0.00050418,121470.0,121460.0,2.05534376]
[1760073854464,0.00101831,121470.0,121460.0,2.05534376]
[1760073854965,0.00101831,121470.0,121460.0,1.82294376]
[1760073855437,0.00101831,121470.0,121460.0,2.05530376]
[1760073855624,0.00101831,121470.0,121460.0,2.05534376]
[1760073856274,0.00101831,121470.0,121460.0,1.82294376]
[1760073856766,0.00101831,121470.0,121460.0,2.05534376]
[1760073857196,0.00101831,121470.0,121460.0,1.82294376]
[1760073857857,0.00101831,121470.0,121460.0,2.05530376]
[1760073860818,0.00101831,121470.0,121460.0,2.05630376]
[1760073861462,0.00101831,121470.0,121460.0,2.05730376]
[1760073863388,0.00101831,121470.0,121460.0,1.82494376]
[1760073863591,0.00101831,121470.0,121460.0,2.05730376]
[1760073866882,0.00101831,121470.0,121460.0,2.05726376]
[1760073868364,0.12970694,121500.0,121480.0,0.16463615]
[1760073868563,0.07122619,121500.0,121490.0,0.57881676]
[1760073869018,0.07122619,121500.0,121490.0,0.1920826]
[1760073869250,0.00503116,121500.0,121490.0,0.57881676]
[1760073869653,0.00503116,121500.0,121490.0,0.70749062]
[1760073870084,0.00503116,121500.0,121490.0,0.1920826]
[1760073870744,0.23243116,121500.0,121490.0,0.1646226]
[1760073871270,0.23243116,121500.0,121490.0,0.1803326]
[1760073873462,0.00015116,121500.0,121490.0,0.1803326]
[1760073873689,0.23243116,121500.0,121490.0,0.1803326]
[1760073874648,0.00015116,121500.0,121490.0,0.1803326]
[1760073875038,0.31961312,121500.0,121490.0,0.70815062]
[1760073875950,0.31961312,121500.0,121490.0,0.1927426]
[1760073876159,0.31961312,121500.0,121490.0,0.70815062]
[1760073876363,0.31961312,121500.0,121490.0,0.73132062]
[1760073877082,0.31961312,121500.0,121490.0,0.2159126]
[1760073877288,0.31961312,121500.0,121490.0,0.73132062]
[1760073878124,0.31961312,121500.0,121490.0,0.70815062]
[1760073878375,0.31961312,121500.0,121490.0,0.73132062]
[1760073879177,0.31957312,121500.0,121490.0,0.69666062]
[1760073881330,0.00169312,121500.0,121490.0,0.73224062]
[1760073881544,0.31957312,121500.0,121490.0,0.73224062]
[1760073882184,0.00169312,121500.0,121490.0,0.73224062]
[1760073882617,0.31957312,121500.0,121490.0,0.73224062]
[1760073883736,0.00169312,121500.0,121490.0,0.73224062]
[1760073883949,0.22593312,121500.0,121490.0,0.73224062]
[1760073884160,0.31961312,121500.0,121490.0,0.73224062]
[1760073884763,0.00169312,121500.0,121490.0,0.73224062]
[1760073884991,0.23397312,121500.0,121490.0,0.73224062]
[1760073885741,0.00169312,121500.0,121490.0,0.73224062]
[1760073885955,0.23397312,121500.0,121490.0,0.73224062]
[1760073886362,0.00169312,121500.0,121490.0,0.73224062]
[1760073886808,0.01469312,121500.0,121490.0,0.81536268]
[1760073887298,0.08953312,121500.0,121490.0,0.81536268]
[1760073887496,0.00169312,121500.0,121490.0,0.81536268]
[1760073887703,0.15041312,121500.0,121490.0,0.81536268]
[1760073888105,0.19985312,121500.0,121490.0,0.81536268]
[1760073888308,0.00169312,121500.0,121490.0,0.81536268]
[1760073888515,0.23397312,121500.0,121490.0,0.81536268]
[1760073888722,0.00169312,121500.0,121490.0,0.81536268]
[1760073889148,0.00169312,121500.0,121490.0,1.04768268]
[1760073889355,0.00169312,121500.0,121490.0,1.18008456]
[1760073889567,0.00169312,121500.0,121490.0,1.41244456]
[1760073890269,0.00169312,121500.0,121490.0,0.66467654]
[1760073890510,0.00169312,121500.0,121490.0,1.41244456]
[1760073895390,0.00169312,121500.0,121490.0,1.44259646]
[1760073895614,0.00169312,121500.0,121490.0,1.95800448]
[1760073896147,0.00169312,121500.0,121490.0,1.44259646]
[1760073896393,0.0002,121540.0,121530.0,0.16456841]
[1760073896607,0.09851113,121540.0,121530.0,0.70819327]
[1760073896817,0.09851113,121540.0,121530.0,0.70794643]
[1760073897029,0.09851113,121540.0,121530.0,0.73218643]
[1760073898013,0.09951113,121540.0,121530.0,0.73218643]
[1760073898890,0.10051113,121540.0,121530.0,0.73218643]
[1760073899498,0.10051113,121540.0,121530.0,0.81530849]
[1760073900056,0.00235113,121540.0,121530.0,0.81530849]
[1760073900878,0.00235113,121540.0,121530.0,0.29990047]
[1760073901084,0.00235113,121540.0,121530.0,0.28392144]
[1760073901306,0.23467113,121540.0,121530.0,0.73218643]
[1760073901510,0.23267113,121540.0,121530.0,0.81530849]
[1760073902153,0.00240615,121540.0,121530.0,0.81530849]
[1760073902352,0.23468615,121540.0,121530.0,0.81530849]
[1760073902583,0.00240615,121540.0,121530.0,0.81530849]
[1760073902793,0.23468615,121540.0,121530.0,0.81530849]
[1760073904841,0.23468615,121540.0,121530.0,0.82363185]
[1760073906866,0.23464615,121540.0,121530.0,0.82363185]
[1760073912007,0.00240615,121540.0,121530.0,0.30822383]
[1760073912250,0.00240615,121540.0,121530.0,0.82363185]
[1760073912251,0.23464615,121540.0,121530.0,0.82363185]
[1760073912754,0.23460615,121540.0,121530.0,0.82363185]
[1760073914043,0.23460615,121540.0,121530.0,0.30822383]
[1760073914255,0.23460615,121540.0,121530.0,0.82363185]
[1760073915896,0.00240615,121540.0,121530.0,0.82363185]
[1760073916124,0.23460615,121540.0,121530.0,0.82363185]
[1760073919126,0.00240615,121540.0,121530.0,0.82363185]
[1760073919332,0.23464615,121540.0,121530.0,0.82363185]
[1760073920952,0.23464615,121540.0,121530.0,0.8483473]
[1760073922560,0.00240615,121540.0,121530.0,0.8483473]
[1760073922774,0.23464615,121540.0,121530.0,0.8483473]
[1760073925238,0.00240615,121540.0,121530.0,0.8483473]
[1760073925542,0.23460615,121540.0,121530.0,0.8483473]
[1760073925762,0.24231587,121540.0,121530.0,0.8483473]
[1760073926394,0.2423193,121540.0,121530.0,0.8483473]
[1760073928554,0.24232103,121540.0,121530.0,0.8483473]
[1760073929678,0.24232103,121540.0,121530.0,1.10528192]
[1760073932253,0.23460615,121540.0,121530.0,1.10528192]
[1760073933666,0.00240615,121540.0,121530.0,1.10528192]
[1760073933864,0.23456615,121540.0,121530.0,0.7191106]
[1760073934797,0.23456615,121540.0,121530.0,0.33293928]
[1760073934951,0.23456615,121540.0,121530.0,0.7191106]
[1760073936158,0.00240615,121540.0,121530.0,0.30869928]
[1760073936370,0.23456615,121540.0,121530.0,0.7184806]
[1760073936844,0.00240615,121540.0,121530.0,0.7184806]
[1760073937045,0.23456615,121540.0,121530.0,0.7184806]
[1760073937664,0.0856,121550.0,121540.0,0.16455487]
[1760073937885,0.32547475,121550.0,121540.0,0.55072619]
[1760073938096,0.32547475,121550.0,121540.0,0.56629619]
[1760073938542,0.32547475,121550.0,121540.0,0.16455487]
[1760073938763,0.32547475,121550.0,121540.0,0.56629619]
[1760073939802,0.32547475,121550.0,121540.0,0.18012487]
[1760073940021,0.32547475,121550.0,121540.0,0.56629619]
[1760073941160,0.32647475,121550.0,121540.0,0.55072619]
[1760073941374,0.32747475,121550.0,121540.0,0.55072619]
[1760073942113,0.32747475,121550.0,121540.0,0.96404751]
[1760073942355,0.31976,121550.0,121540.0,0.96404751]
[1760073943227,0.32027363,121550.0,121540.0,0.96404751]
[1760073943938,0.32027363,121550.0,121540.0,0.16455487]
[1760073944154,0.32027363,121550.0,121540.0,0.95246751]
[1760073944604,0.32023363,121550.0,121540.0,0.98765751]
[1760073945322,0.32023363,121550.0,121540.0,1.01237261]
[1760073951614,0.32019363,121550.0,121540.0,1.01237261]
[1760073953036,0.32019363,121550.0,121540.0,0.98876261]
[1760073955450,0.00251363,121550.0,121540.0,0.98876261]
[1760073955672,0.32019363,121550.0,121540.0,0.98876261]
[1760073955917,0.32019363,121550.0,121540.0,0.21641997]
[1760073956136,0.32019363,121550.0,121540.0,0.98876261]
[1760073957466,0.32019363,121550.0,121540.0,1.01267261]
[1760073957691,0.08811363,121550.0,121540.0,1.01267261]
[1760073957911,0.32015363,121550.0,121540.0,1.01267261]
[1760073961415,0.32015363,121550.0,121540.0,0.24032997]
[1760073961626,0.32015363,121550.0,121540.0,0.98876261]
[1760073962034,0.32015363,121550.0,121540.0,0.24032997]
[1760073962264,0.32015363,121550.0,121540.0,0.98876261]
[1760073964115,0.08811363,121550.0,121540.0,0.98876261]
[1760073964336,0.32015363,121550.0,121540.0,0.98876261]
[1760073965685,0.32015363,121550.0,121540.0,0.96161261]
[1760073966322,0.32015363,121550.0,121540.0,0.97736261]
[1760073967669,0.08811363,121550.0,121540.0,0.97736261]
[1760073967869,0.32015363,121550.0,121540.0,0.97736261]
[1760073968504,0.32015363,121550.0,121540.0,0.20501997]
[1760073968706,0.32015363,121550.0,121540.0,0.97736261]
[1760073969647,0.32015363,121550.0,121540.0,0.96161261]
[1760073970065,0.32015363,121550.0,121540.0,0.21672997]
[1760073970282,0.32015363,121550.0,121540.0,0.98907261]
[1760073972623,0.08811363,121550.0,121540.0,0.98907261]
[1760073972832,0.00251363,121550.0,121540.0,1.09580467]
[1760073973050,0.00915363,121550.0,121540.0,1.09580467]
[1760073973257,0.00251363,121550.0,121540.0,1.09580467]
[1760073973465,0.23455363,121550.0,121540.0,0.32346203]
[1760073973672,0.23455363,121550.0,121540.0,1.09580467]
[1760073974262,0.00251363,121550.0,121540.0,1.48197599]
[1760073974891,0.00883363,121550.0,121540.0,1.48197599]
[1760073975691,0.00783363,121550.0,121540.0,1.48197599]
[1760073976551,0.00151363,121550.0,121540.0,1.85212789]
[1760073976764,0.00196,121570.0,121560.0,0.1645278]
[1760073976963,0.00196,121570.0,121560.0,1.4343266]
[1760073977172,0.0002,121570.0,121560.0,1.45723382]
[1760073977386,0.0002,121570.0,121560.0,1.68947382]
[1760073977609,0.0002,121570.0,121560.0,1.7141794]
[1760073978226,0.0002,121570.0,121560.0,2.0541794]
[1760073979053,0.0002,121570.0,121560.0,1.8219394]
[1760073979260,0.0002,121570.0,121560.0,2.0542194]
[1760073979878,0.00822368,121600.0,121590.0,0.16448429]
[1760073980092,0.00822368,121600.0,121590.0,0.55065561]
[1760073980093,0.20659111,121600.0,121590.0,0.55065561]
[1760073980304,0.20659111,121600.0,121590.0,0.56640561]
[1760073980509,0.20659111,121600.0,121590.0,0.16448429]
[1760073980718,0.20659111,121600.0,121590.0,0.57536119]
[1760073980921,0.20659111,121600.0,121590.0,0.55065561]
[1760073981139,0.20659111,121600.0,121590.0,0.16448429]
[1760073981339,0.20659111,121600.0,121590.0,0.56640561]
[1760073981551,0.00015111,121600.0,121590.0,0.56640561]
[1760073981746,0.31799111,121600.0,121590.0,0.56640561]
[1760073982399,0.31899111,121600.0,121590.0,0.56640561]
[1760073982656,0.32155809,121600.0,121590.0,0.56640561]
[1760073983483,0.32155809,121600.0,121590.0,0.98789693]
[1760073983484,0.08931809,121600.0,121590.0,0.98789693]
[1760073983717,0.08931809,121600.0,121590.0,1.07101899]
[1760073983718,0.32151809,121600.0,121590.0,1.07101899]
[1760073983956,0.32151809,121600.0,121590.0,1.09572337]
[1760073984213,0.08931809,121600.0,121590.0,1.09572337]
[1760073984460,0.32151809,121600.0,121590.0,0.70955205]
[1760073984688,0.00371809,121600.0,121590.0,1.82189469]
[1760073984908,0.00371809,121600.0,121590.0,1.43572337]
[1760073985335,0.00371809,121600.0,121590.0,1.04955205]
[1760073985336,0.23611809,121600.0,121590.0,1.04955205]
[1760073985540,0.23615809,121600.0,121590.0,0.13528644]
[1760073985753,0.23719809,121600.0,121590.0,0.49399776]
[1760073985977,0.23619809,121600.0,121590.0,0.67423497]
[1760073986200,0.23519809,121600.0,121590.0,0.67423497]
[1760073986411,0.00371809,121600.0,121590.0,0.65848497]
[1760073986630,0.23619809,121600.0,121590.0,0.67423497]
[1760073986842,0.23519809,121600.0,121590.0,0.67423497]
[1760073987461,0.23519809,121600.0,121590.0,0.68594497]
[1760073987685,0.00271809,121600.0,121590.0,0.70955497]
[1760073987909,0.00271809,121600.0,121590.0,1.09572629]
[1760073988155,0.20619809,121600.0,121590.0,1.09572629]
[1760073988597,0.00271809,121600.0,121590.0,1.09572629]
[1760073988826,0.21471809,121600.0,121590.0,1.09572629]
[1760073989544,0.23515809,121600.0,121590.0,0.83778709]
[1760073989970,0.00271809,121600.0,121590.0,0.32338365]
[1760073990193,0.23515809,121600.0,121590.0,0.81417709]
[1760073991309,0.23515809,121600.0,121590.0,0.83778709]
[1760073993791,0.23515809,121600.0,121590.0,0.81417709]
[1760073994246,0.23511809,121600.0,121590.0,0.81417709]
[1760073994482,0.00271809,121600.0,121590.0,0.83914709]
[1760073994701,0.23511809,121600.0,121590.0,0.83914709]
[1760073994914,0.23507809,121600.0,121590.0,0.81417709]
[1760073995351,0.24274679,121600.0,121590.0,0.81417709]
[1760073996898,0.24274842,121600.0,121590.0,0.81417709]
[1760073998202,0.24274842,121600.0,121590.0,0.83914709]
[1760074004098,0.24276649,121600.0,121590.0,0.83914709]
[1760074004304,0.23507809,121600.0,121590.0,0.83914709]
[1760074004520,0.24277028,121600.0,121590.0,0.83914709]
[1760074004727,0.24269028,121600.0,121590.0,0.83914709]
[1760074006225,0.24269028,121600.0,121590.0,0.32474365]
[1760074006454,0.24269028,121600.0,121590.0,0.83914709]
[1760074007024,0.24269028,121600.0,121590.0,0.82474365]
[1760074007301,0.01041884,121600.0,121590.0,1.33914709]
[1760074007509,0.24269884,121600.0,121590.0,1.33914709]
[1760074007690,0.24269884,121600.0,121590.0,1.31417709]
[1760074007905,0.24269884,121600.0,121590.0,1.33898709]
[1760074008666,0.17489252,121600.0,121590.0,0.52470438]
[1760074008898,0.42258029,121600.0,121590.0,0.52470438]
[1760074009333,0.42258029,121600.0,121590.0,0.5]
[1760074012924,1.06345123,121600.0,121590.0,0.5]
[1760074013137,1.29577123,121600.0,121590.0,0.5]
[1760074013323,1.37576803,121600.0,121590.0,0.5]
[1760074013563,1.14344803,121600.0,121590.0,0.5]
[1760074013782,1.20924779,121600.0,121590.0,0.5]
[1760074014202,1.21024779,121600.0,121590.0,0.5]
[1760074014638,0.55004779,121600.0,121590.0,0.5]
[1760074014861,1.21028779,121600.0,121590.0,0.5]
[1760074015283,1.21457386,121600.0,121590.0,0.5]
[1760074015731,1.23231038,121600.0,121590.0,0.5]
[1760074015962,1.74671382,121600.0,121590.0,0.5]
[1760074016413,1.23231038,121600.0,121590.0,0.5]
[1760074017427,1.19254029,121600.0,121590.0,0.5]
[1760074017755,1.27566235,121600.0,121590.0,0.5]
[1760074017984,2.35251149,121600.0,121590.0,1e-08]
[1760074018218,2.31392537,121600.0,121590.0,1e-08]
[1760074018450,2.45726374,121600.0,121590.0,1e-08]
[1760074018918,2.47948217,121600.0,121590.0,1e-08]
[1760074019138,2.47848217,121600.0,121590.0,1e-08]
[1760074019357,2.45726374,121600.0,121590.0,1e-08]
[1760074020528,2.47948217,121600.0,121590.0,1e-08]
[1760074021197,2.47848217,121600.0,121590.0,1e-08]
[1760074021415,2.45626374,121600.0,121590.0,1e-08]
[1760074021625,2.45726374,121600.0,121590.0,1e-08]
[1760074022656,2.37196215,121600.0,121590.0,1e-08]
[1760074022858,2.60456215,121600.0,121590.0,1e-08]
[1760074023289,2.6006861,121600.0,121590.0,1e-08]
[1760074023507,2.59680918,121600.0,121590.0,1e-08]
[1760074023716,2.59580918,121600.0,121590.0,1e-08]
[1760074024048,2.59780918,121600.0,121590.0,1e-08]
[1760074024705,2.59764404,121600.0,121590.0,1e-08]
[1760074025558,2.59664404,121600.0,121590.0,1e-08]
[1760074026089,2.59864404,121600.0,121590.0,1e-08]
[1760074026490,2.36604404,121600.0,121590.0,1e-08]
[1760074026680,2.59864404,121600.0,121590.0,1e-08]
[1760074026942,1.93812404,121600.0,121590.0,1e-08]
[1760074027214,2.94120404,121600.0,121590.0,1e-08]
[1760074027779,2.94877708,121600.0,121590.0,1e-08]
[1760074028010,0.16455487,121540.0,121530.0,0.06756833]
[1760074028240,0.25015487,121540.0,121530.0,0.06756833]
[1760074028510,0.16455487,121540.0,121530.0,0.06756833]
[1760074028977,0.48275487,121540.0,121530.0,0.0013733]
[1760074029186,0.48275487,121540.0,121530.0,0.00152441]
[1760074030188,0.00234998,121530.0,121520.0,0.69126385]
[1760074030385,0.00234998,121530.0,121520.0,0.70707498]
[1760074030583,0.00234998,121530.0,121520.0,0.7101566]
[1760074031153,0.00234998,121530.0,121520.0,0.73487626]
[1760074032091,0.23494998,121530.0,121520.0,0.73487626]